bitfinex-derivatives/quotes_ETHF0:USTF0_20241229
["timestamp","ask_amount","ask_price","bid_price","bid_amount"]
[1735461400337,3.50244,3399.6,3399.4,1.16944]
[1735461402530,3.50244,3399.6,3399.5,0.29464]
[1735461403034,3.50244,3399.6,3399.4,1.16945]
[1735461403435,0.29464,3399.5,3399.4,1.16945]
[1735461404741,0.29467,3399.2,3399.1,0.4557]
[1735461405044,1.33509102,3399.2,3399.1,0.75038]
[1735461405540,1.33509102,3399.2,3399.1,0.29468]
[1735461408940,0.29468,3399.1,3399.0,0.29468]
[1735461409137,1.04042102,3399.2,3399.1,0.29468]
[1735461409138,1.33510102,3399.2,3399.1,0.29468]
[1735461412944,1.17276,3399.3,3399.2,0.29467]
[1735461413146,0.8781,3399.3,3399.2,0.29467]
[1735461414940,1.17276,3399.3,3399.2,0.29467]
[1735461416046,1.17276,3399.3,3399.0,4.63106204]
[1735461416047,0.29467,3399.2,3399.1,0.29467]
[1735461416244,1.33509102,3399.2,3399.1,0.29467]
[1735461417948,0.29468,3399.1,3399.0,4.63106204]
[1735461418744,4.24822102,3399.2,3398.7,4.63106204]
[1735461418940,0.2947,3398.8,3398.7,4.63106204]
[1735461419449,1.6434,3398.8,3398.7,4.63106204]
[1735461420453,1.6434,3398.8,3398.6,0.29472]
[1735461421252,1.04042102,3398.7,3398.6,0.29472]
[1735461422342,1.33513102,3398.7,3398.6,0.29472]
[1735461422544,1.33513102,3398.7,3398.5,0.29473]
[1735461423551,1.33513102,3398.7,3398.4,4.63106204]
[1735461423552,1.04042102,3398.7,3398.4,4.63106204]
[1735461423847,1.33515102,3398.5,3398.4,4.63106204]
[1735461424751,0.29475,3398.2,3398.1,4.63106204]
[1735461425453,1.19715,3398.2,3398.1,4.63106204]
[1735461426450,3.56694701,3398.2,3398.1,4.63106204]
[1735461426650,3.56694701,3398.2,3397.8,9.26924159]
[1735461426651,3.27219701,3398.2,3397.5,8.71906204]
[1735461426851,0.29477,3398.1,3397.5,8.71906204]
[1735461427056,0.29476,3398.1,3397.8,0.29479]
[1735461427261,0.29477,3398.0,3397.8,0.29479]
[1735461427451,0.29477,3398.0,3397.9,0.4408]
[1735461430161,3.2078,3398.3,3398.2,0.29475]
[1735461430453,3.4636727,3398.6,3398.1,3.2078]
[1735461430646,3.4636727,3398.7,3398.6,0.29472]
[1735461431051,3.4636727,3398.7,3398.6,41.09472]
[1735461431654,3.50249,3398.9,3398.7,0.29471]
[1735461431855,3.50249,3398.9,3398.8,0.4293]
[1735461432253,3.2078,3398.9,3398.8,0.724]
[1735461432756,3.2078,3398.9,3398.8,0.4293]
[1735461433448,3.50249,3398.9,3398.8,0.4293]
[1735461434148,3.2078,3398.9,3398.8,0.4293]
[1735461435158,3.50249,3398.9,3398.8,0.4293]
[1735461436258,3.2078,3398.9,3398.8,0.4293]
[1735461436655,3.2078,3398.9,3398.8,0.724]
[1735461437056,3.50249,3398.9,3398.8,0.4293]
[1735461437264,3.2078,3398.9,3398.8,0.4293]
[1735461438462,3.50249,3398.9,3398.8,0.4293]
[1735461440065,3.2078,3398.9,3398.6,0.29471]
[1735461440267,0.2947,3398.8,3398.6,0.29471]
[1735461441069,0.4476,3398.7,3398.4,0.4314]
[1735461441268,0.74231,3398.7,3398.5,0.29472]
[1735461441470,0.4476,3398.7,3398.5,0.29472]
[1735461441964,0.74231,3398.7,3398.5,0.29472]
[1735461442466,0.4476,3398.7,3398.6,0.29472]
[1735461443272,0.74231,3398.7,3398.6,0.29472]
[1735461445469,0.74231,3398.7,3398.5,0.29472]
[1735461445771,0.29474,3398.4,3398.3,0.29474]
[1735461447768,0.29474,3398.4,3398.3,0.74584]
[1735461450372,1.33606452,3398.4,3398.3,0.74584]
[1735461450776,1.33606452,3398.4,3398.3,0.4511]
[1735461453280,1.04132452,3398.5,3398.4,0.29473]
[1735461453877,1.04132452,3398.5,3398.4,41.09473]
[1735461454279,1.33605452,3398.5,3398.4,41.09473]
[1735461454874,1.33605452,3398.5,3398.4,0.29473]
[1735461455280,1.04132452,3398.5,3398.4,0.29473]
[1735461455882,1.33605452,3398.5,3398.4,0.29473]
[1735461457886,1.04132452,3398.5,3398.3,0.4511]
[1735461458092,0.73744,3398.4,3398.3,0.4511]
[1735461458387,0.4427,3398.4,3398.1,3.2078]
[1735461458586,1.33607452,3398.2,3398.1,3.2078]
[1735461459288,1.33607452,3398.2,3398.0,4.92583204]
[1735461459987,1.33607452,3398.2,3398.0,0.29477]
[1735461464598,1.04132452,3398.2,3398.0,0.29477]
[1735461464802,0.29476,3398.1,3397.9,5.80644204]
[1735461464999,1.04132452,3398.0,3397.9,5.80644204]
[1735461465692,1.33609452,3398.0,3397.9,5.80644204]
[1735461466590,1.04132452,3398.0,3397.9,5.80644204]
[1735461466795,1.33609452,3398.0,3397.9,1.17538]
[1735461467500,1.04132452,3398.0,3397.9,1.17538]
[1735461467899,1.33609452,3398.0,3397.9,1.17538]
[1735461469808,1.33609452,3398.0,3397.9,0.29478]
[1735461470505,0.29478,3397.9,3397.8,4.92585204]
[1735461470704,0.75608,3397.9,3397.8,4.92585204]
[1735461471100,0.75608,3397.9,3397.8,4.63106204]
[1735461471400,1.04132452,3397.9,3397.8,4.63106204]
[1735461471602,1.04132452,3397.9,3397.8,4.92584204]
[1735461471803,1.04132452,3397.9,3397.8,0.29478]
[1735461473808,1.04132452,3397.9,3397.7,4.63106204]
[1735461474007,0.72299,3397.8,3397.7,4.63106204]
[1735461474810,0.4282,3397.8,3397.7,4.63106204]
[1735461475004,1.04132452,3397.8,3397.7,0.2948]
[1735461475911,1.33611452,3397.8,3397.7,0.2948]
[1735461476408,1.04132452,3397.8,3397.6,5.06406204]
[1735461476607,1.1733,3397.7,3397.6,5.06406204]
[1735461476801,1.1733,3397.7,3397.6,0.433]
[1735461477202,1.6353,3397.7,3397.6,0.433]
[1735461477407,1.6353,3397.7,3397.5,4.63106204]
[1735461477608,1.04132452,3397.6,3397.5,5.35807204]
[1735461477804,1.33613452,3397.6,3397.5,5.06326204]
[1735461479311,1.33613452,3397.6,3397.5,0.72701]
[1735461480510,1.04132452,3397.6,3397.5,0.72701]
[1735461480711,1.33613452,3397.6,3397.5,0.4322]
[1735461480914,1.33613452,3397.6,3397.5,0.72701]
[1735461481513,1.04132452,3397.6,3397.5,0.72701]
[1735461482006,3.2078,3398.0,3397.5,0.4322]
[1735461482210,1.33612452,3397.7,3397.5,0.72701]
[1735461483909,1.33612452,3397.7,3397.5,0.4322]
[1735461484411,1.04132452,3397.7,3397.6,0.29481]
[1735461484608,2.38742452,3397.9,3397.5,0.4322]
[1735461484802,1.04132452,3397.9,3397.8,0.29479]
[1735461485207,1.04132452,3397.9,3397.5,0.4322]
[1735461485208,1.33610452,3397.9,3397.7,0.29479]
[1735461485610,1.33610452,3397.9,3397.5,0.4322]
[1735461485611,1.04132452,3397.9,3397.5,0.4322]
[1735461485811,0.29479,3397.8,3397.6,0.2948]
[1735461486311,1.04132452,3397.7,3397.6,0.2948]
[1735461486909,1.79322452,3397.7,3397.5,0.72701]
[1735461487605,1.49842452,3397.7,3397.5,0.4322]
[1735461487811,0.29481,3397.6,3397.5,0.4322]
[1735461488013,1.20901,3397.6,3397.5,0.4322]
[1735461488217,1.20901,3397.6,3397.5,0.72701]
[1735461488919,1.20901,3397.6,3397.5,0.4322]
[1735461489320,0.75851,3397.6,3397.5,0.4322]
[1735461490018,0.75851,3397.6,3397.5,0.72701]
[1735461490520,0.4637,3397.6,3397.5,0.72701]
[1735461490914,1.79322452,3397.7,3397.5,0.72701]
[1735461491116,1.49842452,3397.7,3397.5,0.72701]
[1735461491310,1.49842452,3397.7,3397.6,0.29481]
[1735461491509,0.4571,3397.7,3397.6,0.29481]
[1735461491915,2.21570452,3397.9,3397.7,0.29479]
[1735461492117,1.92092452,3397.9,3397.8,0.29479]
[1735461492413,2.21570452,3397.9,3397.8,0.29479]
[1735461492723,2.21570452,3397.9,3397.5,0.4322]
[1735461492724,2.21570452,3397.9,3397.7,0.29479]
[1735461492922,0.29479,3397.8,3397.7,0.29479]
[1735461493419,2.21570452,3397.9,3397.7,0.29479]
[1735461493721,1.76520452,3397.9,3397.8,0.29479]
[1735461495019,0.72388,3397.9,3397.5,5.06326204]
[1735461495218,1.76520452,3397.9,3397.8,0.29479]
[1735461495621,1.76520452,3397.9,3397.6,4.63106204]
[1735461496016,1.76520452,3397.9,3397.7,0.2948]
[1735461497520,4.3387727,3398.1,3397.7,1.04132452]
[1735461497717,3.4636727,3398.1,3398.0,0.29477]
[1735461497918,3.4636727,3398.1,3398.0,0.66336492]
[1735461498128,3.4636727,3398.1,3398.0,2.68546492]
[1735461498426,3.4636727,3398.1,3398.0,2.31687]
[1735461498624,3.4636727,3398.1,3398.0,2.68541092]
[1735461499324,1.46182452,3398.4,3398.3,0.29475]
[1735461499518,1.46182452,3398.4,3398.3,3.50255]
[1735461499821,1.46182452,3398.4,3398.3,0.29475]
[1735461503323,0.29475,3398.2,3398.1,4.63333266]
[1735461503528,1.33607452,3398.2,3398.1,4.63333266]
[1735461504028,1.79877452,3398.2,3398.1,4.63333266]
[1735461505125,0.29476,3398.1,3398.0,4.63333266]
[1735461505321,2.37740904,3398.1,3398.0,3.21333266]
[1735461505819,1.33608452,3398.1,3398.0,3.21333266]
[1735461506422,5.65850885,3398.1,3397.4,0.75472]
[1735461506629,0.29481,3397.6,3397.4,0.75472]
[1735461507026,1.33612452,3397.7,3397.4,0.75472]
[1735461507228,0.72101,3397.6,3397.4,1.20252]
[1735461507417,0.4262,3397.6,3397.4,1.20252]
[1735461507621,0.72101,3397.6,3397.4,1.20252]
[1735461507821,0.72101,3397.6,3397.4,1.62692]
[1735461508621,0.4262,3397.6,3397.4,1.3321]
[1735461508822,0.438,3397.7,3397.5,0.29481]
[1735461509125,0.7328,3397.7,3397.4,1.62692]
[1735461509322,3.6644,3397.8,3397.7,0.2948]
[1735461510124,3.45427882,3397.9,3397.8,0.29479]
[1735461510325,3.45427882,3398.0,3397.8,0.36857199]
[1735461510628,3.45427882,3398.0,3397.9,1.18098]
[1735461511222,3.45427882,3398.0,3397.9,41.98098]
[1735461511926,0.29476,3398.1,3397.9,54.16149831]
[1735461512130,0.29476,3398.1,3398.0,0.29477]
[1735461512320,0.29476,3398.1,3398.0,0.73037]
[1735461512725,0.29476,3398.1,3398.0,3.93817]
[1735461513029,0.8925,3398.2,3398.0,3.6434]
[1735461513231,0.8925,3398.2,3398.1,0.29476]
[1735461515827,1.18726,3398.2,3398.0,0.73037]
[1735461516028,1.18726,3398.2,3398.0,0.4356]
[1735461516228,1.18726,3398.2,3398.1,0.29476]
[1735461516427,0.29476,3398.1,3398.0,0.4356]
[1735461516927,0.29476,3398.1,3398.0,0.73037]
[1735461517730,0.8925,3398.2,3397.7,7.24479899]
[1735461518232,0.29477,3398.0,3397.9,0.29478]
[1735461518933,0.29477,3398.0,3397.8,0.29478]
[1735461519134,0.8925,3398.2,3397.8,0.29478]
[1735461519440,0.29478,3397.9,3397.8,0.29478]
[1735461519635,0.8925,3398.2,3397.6,6.94999899]
[1735461519836,0.8925,3398.2,3397.7,6.94999899]
[1735461520035,0.29478,3397.9,3397.8,0.29478]
[1735461523333,0.8925,3398.2,3397.7,6.94999899]
[1735461523528,0.4566,3398.2,3397.7,6.94999899]
[1735461523730,0.4566,3398.2,3398.1,0.29476]
[1735461524241,0.4566,3398.2,3398.1,41.09476]
[1735461524738,0.4566,3398.2,3398.1,0.29476]
[1735461524940,6.66207882,3398.3,3397.9,0.892]
[1735461525136,0.4465,3398.5,3398.1,3.2078]
[1735461525437,0.4465,3398.5,3398.4,0.29474]
[1735461527835,0.4393,3398.6,3398.5,0.29473]
[1735461528035,6.66207882,3398.8,3398.6,0.29472]
[1735461528036,0.4349,3398.7,3398.6,0.29472]
[1735461528341,6.66207882,3398.8,3398.7,0.72031]
[1735461528342,3.45427882,3398.8,3398.7,0.72031]
[1735461528539,3.45427882,3398.8,3398.7,1.08879324]
[1735461529233,3.2078,3399.3,3399.2,0.29467]
[1735461531839,3.50246,3399.3,3399.2,0.29467]
[1735461532343,0.29468,3399.1,3399.0,0.29468]
[1735461532542,3.50246,3399.3,3399.2,0.29467]
[1735461532837,0.29467,3399.2,3399.1,0.29467]
[1735461534739,0.29468,3399.1,3398.8,0.2947]
[1735461535038,0.29466,3399.3,3398.9,0.29469]
[1735461535240,0.29468,3399.1,3399.0,0.29468]
[1735461541145,2.36987316,3399.1,3398.7,0.4256]
[1735461541340,0.4207,3399.0,3398.6,3.2078]
[1735461541646,0.4207,3399.0,3398.7,0.29471]
[1735461541647,0.29471,3398.8,3398.7,0.29471]
[1735461541841,1.2074,3398.9,3398.7,0.29471]
[1735461542048,0.9127,3398.9,3398.8,0.2947]
[1735461542346,0.4207,3399.0,3398.9,0.29469]
[1735461543750,0.4207,3399.0,3398.8,0.2947]
[1735461543751,0.29469,3398.9,3398.8,0.2947]
[1735461543942,0.4564,3398.9,3398.8,0.2947]
[1735461544745,0.4207,3399.0,3398.9,0.29469]
[1735461545343,0.71538,3399.0,3398.9,0.29469]
[1735461545750,3.92318,3399.0,3398.9,0.29469]
[1735461546146,0.2947,3398.9,3398.4,41.6856]
[1735461546447,0.2947,3398.9,3398.7,0.2947]
[1735461546653,3.6285,3399.0,3398.4,41.6856]
[1735461546654,0.29472,3398.6,3398.4,0.29473]
[1735461546952,0.75123,3398.5,3398.3,0.29475]
[1735461547146,1.20693,3398.5,3398.3,0.29475]
[1735461547351,0.29474,3398.4,3398.2,3.50255]
[1735461547950,0.29474,3398.4,3398.3,0.29475]
[1735461548353,0.9122,3398.5,3398.2,3.2078]
[1735461548550,0.9122,3398.5,3398.4,0.29474]
[1735461553158,0.4565,3398.5,3398.4,0.29474]
[1735461554562,0.74471,3398.8,3398.6,0.29471]
[1735461554762,1.18681,3398.8,3398.6,0.29471]
[1735461555060,1.18681,3398.8,3398.7,0.4556]
[1735461555762,0.8921,3398.8,3398.2,3.2078]
[1735461555964,0.29474,3398.5,3398.3,0.75034]
[1735461556357,1.4834171,3398.4,3398.3,0.75034]
[1735461557059,1.4834171,3398.4,3398.3,0.29474]
[1735461557257,2.2122571,3398.4,3398.3,0.29475]
[1735461558469,1.17094,3398.4,3398.3,0.29475]
[1735461559266,1.17094,3398.4,3398.2,3.50255]
[1735461559564,1.17094,3398.4,3398.3,0.29475]
[1735461560560,0.29475,3398.3,3398.2,3.50255]
[1735461560965,0.8762,3398.4,3398.2,3.2078]
[1735461561175,1.17094,3398.4,3398.3,0.29475]
[1735461561373,4.084,3398.4,3398.0,0.4432]
[1735461561569,4.084,3398.4,3397.7,7.24478899]
[1735461561570,0.29479,3397.8,3397.7,7.24478899]
[1735461561769,0.29478,3397.9,3397.8,0.29478]
[1735461562772,0.29478,3397.9,3397.8,0.73198]
[1735461564471,0.29478,3397.9,3397.8,0.4372]
[1735461565877,0.29478,3397.9,3397.8,0.73199]
[1735461567775,0.73457,3398.0,3397.9,0.29478]
[1735461568679,0.4398,3398.0,3397.8,0.73198]
[1735461568879,0.29478,3397.9,3397.8,0.73198]
[1735461571178,0.4398,3398.0,3397.8,0.4372]
[1735461571375,0.4398,3398.0,3397.9,0.29478]
[1735461571778,0.29477,3398.1,3397.9,0.29478]
[1735461572374,0.29476,3398.1,3397.9,0.29478]
[1735461573485,0.29476,3398.1,3397.9,0.73328]
[1735461573980,3.639,3398.2,3397.9,0.73328]
[1735461574184,0.29477,3398.0,3397.9,0.73328]
[1735461577579,0.29477,3398.0,3397.9,0.4385]
[1735461577982,0.29478,3397.9,3397.8,0.73198]
[1735461583283,1.0415706,3398.0,3397.8,0.4372]
[1735461583485,0.29478,3397.9,3397.8,0.73198]
[1735461584082,0.73218,3397.9,3397.8,0.4372]
[1735461587093,0.29479,3397.8,3397.7,0.29479]
[1735461587391,0.29482,3397.5,3397.4,0.29482]
[1735461587585,1.3363906,3397.5,3397.4,0.29482]
[1735461588094,1.0415706,3397.5,3397.4,0.29482]
[1735461588286,1.3363906,3397.5,3397.3,7.69472899]
[1735461588491,0.71492,3397.4,3397.3,7.69472899]
[1735461588693,3.6279,3397.4,3397.3,0.4499]
[1735461588994,0.29484,3397.2,3397.0,0.74475]
[1735461589185,0.455,3397.3,3397.0,0.4499]
[1735461589586,4.6694706,3397.4,3397.3,0.29483]
[1735461589789,4.9642906,3397.4,3397.3,0.29483]
[1735461590192,4.6694706,3397.4,3397.0,0.4499]
[1735461590393,4.9642906,3397.4,3397.2,0.29484]
[1735461590689,0.29484,3397.3,3397.1,0.29484]
[1735461590991,1.0415706,3397.2,3397.1,0.29484]
[1735461594192,1.3364106,3397.2,3397.1,0.29484]
[1735461594898,1.3364106,3397.2,3397.0,0.4499]
[1735461595389,1.0415706,3397.2,3397.1,0.29485]
[1735461596591,4.9643006,3397.4,3397.2,0.29484]
[1735461597495,4.6694706,3397.4,3396.7,10.15779899]
[1735461597696,1.0415706,3396.8,3396.7,7.24487899]
[1735461597894,4.2493706,3397.0,3396.7,6.94999899]
[1735461598099,0.74248,3396.8,3396.7,6.94999899]
[1735461599295,0.74248,3396.8,3396.6,0.72689]
[1735461599793,0.4476,3396.8,3396.7,0.29488]
[1735461600195,0.4545,3396.9,3396.6,0.432]
[1735461600494,4.9946406,3397.0,3396.8,0.29487]
[1735461600695,4.9946406,3397.0,3396.7,0.29488]
[1735461600898,3.95307,3397.0,3396.8,0.71897]
[1735461602703,3.95307,3397.0,3396.9,0.29487]
[1735461603005,3.95306,3397.0,3396.8,0.71897]
[1735461604604,0.29489,3396.7,3396.5,0.2949]
[1735461604804,1.60729,3396.6,3396.5,0.2949]
[1735461605001,1.3124,3396.6,3396.3,3.2078]
[1735461605201,0.2949,3396.5,3396.3,3.50271]
[1735461605405,1.3124,3396.6,3396.3,3.2078]
[1735461605604,1.0415706,3396.8,3396.3,3.2078]
[1735461605799,0.72327,3396.9,3396.7,0.29488]
[1735461605999,3.2078,3397.0,3396.8,0.4527]
[1735461606205,1.15075,3397.1,3396.9,0.74276]
[1735461606505,0.29486,3397.0,3396.9,0.8723]
[1735461607406,1.0415706,3397.0,3396.3,3.2078]
[1735461607606,1.0415706,3396.6,3396.5,0.2949]
[1735461607805,1.3364706,3396.6,3396.4,0.74761]
[1735461607999,0.4284,3396.5,3396.4,0.74761]
[1735461608897,0.7233,3396.5,3396.4,0.4527]
[1735461609106,0.29491,3396.4,3396.3,3.2078]
[1735461609304,1.3364806,3396.4,3396.3,3.2078]
[1735461610905,1.0415706,3396.4,3396.0,0.73614]
[1735461611207,0.29493,3396.2,3396.0,0.73614]
[1735461611908,1.3364906,3396.4,3396.2,0.29492]
[1735461612107,3.2078,3396.6,3396.3,1.0415706]
[1735461612299,3.45427882,3396.9,3396.5,1.0415706]
[1735461612497,3.45427882,3396.9,3396.8,0.29488]
[1735461612706,3.45427882,3396.9,3396.8,41.09488]
[1735461613505,4.2493706,3397.1,3396.8,40.8]
[1735461613911,1.3364406,3396.9,3396.8,40.8]
[1735461614811,1.0415706,3396.9,3396.8,41.09488]
[1735461615304,1.0415706,3396.9,3396.8,0.29488]
[1735461615903,1.3364406,3396.9,3396.7,0.29488]
[1735461616309,0.29487,3396.9,3396.7,0.29488]
[1735461616909,0.74998,3396.8,3396.6,0.29489]
[1735461617100,0.29489,3396.7,3396.5,1.1852]
[1735461617506,0.29489,3396.6,3396.5,0.4378]
[1735461618904,0.4551,3396.8,3396.2,3.2078]
[1735461618905,0.29488,3396.7,3396.2,3.2078]
[1735461619107,0.29492,3396.4,3396.2,3.94503]
[1735461619507,0.4535,3396.3,3396.2,3.94503]
[1735461620216,0.4535,3396.3,3396.2,3.6501]
[1735461621210,0.4535,3396.3,3396.2,3.94503]
[1735461622109,0.4535,3396.3,3396.2,0.73723]
[1735461622607,0.4535,3396.3,3396.1,3.2078]
[1735461622808,3.2078,3396.2,3395.5,6.94999899]
[1735461623312,0.29496,3395.9,3395.7,0.29497]
[1735461623808,0.29496,3395.9,3395.8,0.4542]
[1735461626320,3.2078,3396.2,3395.3,3.2078]
[1735461626615,0.29498,3395.6,3395.4,0.74919]
[1735461629221,0.29498,3395.7,3395.4,0.74919]
[1735461630022,0.29498,3395.7,3395.4,0.4542]
[1735461630224,0.29498,3395.6,3395.4,0.74919]
[1735461631226,0.29498,3395.7,3395.5,0.29499]
[1735461634920,0.75547,3395.8,3395.6,0.29498]
[1735461635717,0.29497,3395.7,3395.5,0.29498]
[1735461636330,1.33788969,3395.7,3395.5,0.29498]
[1735461640042,1.04291969,3395.7,3395.4,0.4542]
[1735461640240,0.29498,3395.6,3395.5,0.29499]
[1735461640540,1.33788969,3395.7,3395.5,0.29499]
[1735461642036,1.04291969,3395.7,3395.5,0.29499]
[1735461642339,1.33789969,3395.7,3395.5,0.29499]
[1735461642841,0.29498,3395.6,3395.5,0.29499]
[1735461643843,1.04291969,3395.7,3395.5,0.29499]
[1735461644043,1.33789969,3395.7,3395.5,0.29499]
[1735461646741,1.33789969,3395.7,3395.6,0.29498]
[1735461647742,1.33789969,3395.7,3395.5,0.29498]
[1735461648943,0.29498,3395.6,3395.5,0.29498]
[1735461649742,0.29498,3395.6,3395.4,0.4542]
[1735461650038,1.04291969,3395.5,3395.4,0.74919]
[1735461653651,0.295,3395.4,3395.2,0.75671]
[1735461653947,0.4424,3395.4,3395.2,0.9022]
[1735461654148,3.94522,3395.8,3395.2,1.19721]
[1735461654353,1.79861969,3395.4,3395.2,1.19721]
[1735461654543,1.79861969,3395.4,3395.3,40.8]
[1735461654738,1.79861969,3395.4,3395.2,1.19721]
[1735461655749,1.79861969,3395.4,3395.3,0.29501]
[1735461655947,1.79861969,3395.4,3395.2,0.9022]
[1735461656148,1.50361969,3395.4,3395.3,0.29501]
[1735461656543,0.4215,3395.7,3395.2,0.9022]
[1735461656739,6.66207882,3395.8,3395.2,0.9022]
[1735461656939,6.66207882,3395.8,3395.7,0.29497]
[1735461657346,6.95704882,3395.8,3395.6,0.29497]
[1735461657651,0.29497,3395.7,3395.6,0.29497]
[1735461657847,6.66207882,3395.8,3395.6,0.29497]
[1735461658043,3.2078,3395.8,3395.6,0.29497]
[1735461658548,1.04291969,3395.7,3395.6,0.29497]
[1735461660345,1.33788969,3395.7,3395.6,0.29497]
[1735461660744,1.04291969,3395.7,3395.6,0.29497]
[1735461661449,1.33788969,3395.7,3395.6,0.29497]
[1735461661751,1.33788969,3395.7,3395.5,0.29498]
[1735461664151,0.29498,3395.6,3395.4,0.29499]
[1735461664353,0.29499,3395.5,3395.2,0.4617]
[1735461664547,0.295,3395.4,3395.2,0.75671]
[1735461664950,0.295,3395.4,3395.2,5.38043341]
[1735461665547,0.4365,3395.4,3395.2,5.08542341]
[1735461665850,0.295,3395.4,3395.2,5.38043341]
[1735461666056,0.295,3395.4,3395.2,0.75671]
[1735461667158,0.295,3395.4,3395.2,0.29501]
[1735461667953,0.29501,3395.2,3395.1,4.62372341]
[1735461669552,0.295,3395.4,3395.1,4.62372341]
[1735461669754,3.45427882,3395.3,3395.2,0.29501]
[1735461670258,3.45427882,3395.3,3395.2,41.09501]
[1735461671155,3.91367882,3395.5,3395.2,45.42372341]
[1735461671348,3.91367882,3395.5,3395.4,0.295]
[1735461671752,3.45427882,3395.5,3395.4,0.295]
[1735461673757,0.29498,3395.6,3395.4,4.91872341]
[1735461673964,3.90967882,3395.7,3395.4,5.6666431]
[1735461674251,3.45427882,3395.7,3395.6,1.33789969]
[1735461674459,4.55236315,3395.9,3395.8,0.29496]
[1735461674654,4.55236315,3395.9,3395.8,4.54567969]
[1735461674847,4.55236315,3395.9,3395.8,9.91444467]
[1735461675053,4.55236315,3395.9,3395.8,50.71444467]
[1735461675760,0.29491,3396.4,3396.3,0.29491]
[1735461676153,1.04291969,3396.5,3396.0,1.15]
[1735461676453,0.29493,3396.2,3396.1,0.29494]
[1735461676851,0.29493,3396.2,3396.1,4.93136694]
[1735461677359,0.29493,3396.2,3396.1,4.63642694]
[1735461677760,0.29493,3396.2,3396.0,4.93136694]
[1735461677953,0.8459,3396.1,3396.0,4.93136694]
[1735461678954,0.8459,3396.1,3396.0,0.29494]
[1735461679954,0.8459,3396.1,3396.0,4.93136694]
[1735461681061,0.8459,3396.1,3396.0,0.29494]
[1735461683965,4.25071969,3396.5,3395.8,8.88714663]
[1735461683966,0.29492,3396.4,3396.3,0.29491]
[1735461684164,1.3218,3396.4,3396.3,0.29491]
[1735461689362,3.2078,3396.5,3396.4,0.29491]
[1735461696570,0.893,3396.6,3396.2,1.04291969]
[1735461696763,0.893,3396.6,3396.5,0.2949]
[1735461699173,1.93591969,3396.6,3396.1,3.2078]
[1735461699375,1.04291969,3396.4,3396.1,3.2078]
[1735461699571,0.29492,3396.3,3396.1,3.50273]
[1735461699767,0.72252,3396.3,3396.1,3.50273]
[1735461700577,0.72252,3396.3,3396.2,0.29493]
[1735461705382,0.4276,3396.3,3396.2,0.29493]
[1735461706277,0.72252,3396.3,3396.2,0.29493]
[1735461706578,0.4276,3396.3,3396.2,0.29493]
[1735461710190,0.893,3396.6,3396.5,0.2949]
[1735461710490,1.313,3396.6,3396.5,0.2949]
[1735461712487,2.35591969,3396.6,3396.5,0.2949]
[1735461713590,1.313,3396.6,3396.5,0.2949]
[1735461721290,1.313,3396.6,3396.5,4.93132694]
[1735461723490,1.60789,3396.6,3396.5,4.93132694]
[1735461723882,1.313,3396.6,3396.5,4.93132694]
[1735461724286,1.60789,3396.6,3396.5,4.93132694]
[1735461726288,1.313,3396.6,3396.5,4.93132694]
[1735461727395,0.4488,3396.6,3396.5,4.93132694]
[1735461727590,3.2078,3396.8,3396.7,0.29488]
[1735461729595,3.2078,3396.8,3396.7,0.75188]
[1735461731699,4.59348791,3397.0,3396.7,1.49991969]
[1735461731894,4.59348791,3397.0,3396.9,1.33778969]
[1735461732291,4.59348791,3397.0,3396.9,1.70645704]
[1735461732488,4.59348791,3397.0,3396.9,1.33778969]
[1735461732797,4.88834791,3397.0,3396.9,0.29487]
[1735461732996,6.0865076,3397.0,3396.6,7.84422694]
[1735461733193,1.04291969,3396.8,3396.6,4.63642694]
[1735461733393,3.656,3396.7,3396.5,11.4858237]
[1735461733591,0.29489,3396.6,3396.5,11.4858237]
[1735461733796,0.75369,3396.6,3396.5,11.4858237]
[1735461734896,0.75369,3396.6,3396.4,6.08331199]
[1735461735093,0.4262,3396.5,3396.4,6.08331199]
[1735461735392,0.4262,3396.5,3396.4,5.78840199]
[1735461735598,0.7211,3396.5,3396.4,4.63840199]
[1735461736198,0.7211,3396.5,3396.3,4.93332199]
[1735461736898,0.4262,3396.5,3396.4,0.29491]
[1735461737098,0.4262,3396.5,3396.3,4.63840199]
[1735461737303,0.7211,3396.5,3396.3,4.93332199]
[1735461737697,0.4262,3396.5,3396.3,4.63840199]
[1735461737903,1.33782969,3396.4,3396.3,4.63840199]
[1735461738605,0.29493,3396.3,3396.1,4.93334199]
[1735461738901,0.4242,3396.2,3396.1,4.93334199]
[1735461740808,0.4242,3396.2,3396.1,5.91238983]
[1735461742511,0.4242,3396.2,3396.1,0.29494]
[1735461743709,0.71913,3396.2,3396.1,4.63846752]
[1735461744910,3.87834005,3396.2,3396.1,0.29494]
[1735461746009,0.4242,3396.2,3396.1,0.29494]
[1735461748413,3.45414005,3396.4,3396.3,0.29492]
[1735461748615,3.45414005,3396.4,3396.3,1.33783969]
[1735461749517,0.4262,3396.5,3396.4,0.29491]
[1735461750607,0.4262,3396.5,3396.4,4.93337752]
[1735461751618,0.4262,3396.5,3396.4,4.63846752]
[1735461751814,0.7211,3396.5,3396.4,4.63846752]
[1735461752710,0.4262,3396.5,3396.4,4.63846752]
[1735461753016,0.4262,3396.5,3396.3,0.29491]
[1735461754512,0.29491,3396.4,3396.2,4.93338752]
[1735461757010,0.29491,3396.4,3396.2,0.29492]
[1735461758218,3.88034005,3396.5,3396.1,4.63846752]
[1735461758420,3.50273,3396.2,3396.1,4.63846752]
[1735461759217,3.50273,3396.2,3395.8,12.77956398]
[1735461759218,6.66194005,3396.2,3395.8,8.14122752]
[1735461759420,0.8871,3396.1,3395.8,8.14122752]
[1735461759717,0.8871,3396.1,3395.8,7.84626752]
[1735461759718,0.29495,3395.9,3395.8,7.84626752]
[1735461760122,0.29495,3395.9,3395.8,4.63846752]
[1735461760825,0.29495,3395.9,3395.7,0.29497]
[1735461761528,0.29495,3395.9,3395.6,46.48138721]